fUST/lending_fUST_20241221
["ID","MTS","AMOUNT","RATE_DAILY","PERIOD"]
[346149263,1734751754523,-467.64437535,0.00019724,2]
[346149264,1734751754545,-664.75,0.00019724,2]
[346149265,1734751754566,-500.0,0.00019724,2]
[346149266,1734751754589,-500.0,0.00019724,2]
[346149267,1734751754611,-500.0,0.00019724,2]
[346149268,1734751754634,-500.0,0.00019724,2]
[346149269,1734751754655,-500.0,0.00019724,2]
[346149270,1734751754676,-500.0,0.00019724,2]
[346149271,1734751754699,-503.95018346,0.00019724,2]
[346149272,1734751754722,-500.0,0.00019724,2]
[346149273,1734751754744,-500.0,0.00019724,2]
[346149274,1734751754768,-500.0,0.00019724,2]
[346149275,1734751754791,-500.0,0.00019724,2]
[346149276,1734751754812,-500.0,0.00019724,2]
[346149277,1734751754833,-173.04709579,0.00019724,2]
[346149278,1734751754855,-500.0,0.00019724,2]
[346149279,1734751754877,-500.0,0.00019724,2]
[346149280,1734751754898,-500.0,0.00019724,2]
[346149281,1734751754919,-500.0,0.00019724,2]
[346149282,1734751754941,-500.0,0.00019724,2]
[346149283,1734751754962,-500.0,0.00019724,2]
[346149284,1734751754982,-500.0,0.00019724,2]
[346149285,1734751755002,-500.0,0.00019724,2]
[346149286,1734751755023,-431.88934855,0.00019724,2]
[346149287,1734751755045,-500.0,0.00019724,2]
[346149288,1734751755067,-500.0,0.00019724,2]
[346149289,1734751755088,-500.0,0.00019724,2]
[346149290,1734751755110,-200.0,0.00019724,2]
[346149291,1734751755132,-500.0,0.00019724,2]
[346149292,1734751755155,-500.0,0.00019724,2]
[346149293,1734751755178,-500.0,0.00019724,2]
[346149294,1734751755199,-500.0,0.00019724,2]
[346149295,1734751755220,-500.0,0.00019724,2]
[346149296,1734751755243,-500.0,0.00019724,2]
[346149297,1734751755264,-500.0,0.00019724,2]
[346149298,1734751755285,-500.0,0.00019724,2]
[346149299,1734751755311,-500.0,0.00019724,2]
[346149300,1734751755333,-500.0,0.00019724,2]
[346149301,1734751755355,-500.0,0.00019724,2]
[346149302,1734751755376,-549.21,0.00019724,2]
[346149303,1734751755397,-1261.26,0.00019724,2]
[346149304,1734751755419,-500.0,0.00019724,2]
[346149305,1734751755442,-500.0,0.00019724,2]
[346149306,1734751755467,-500.0,0.00019724,2]
[346149307,1734751755488,-500.0,0.00019724,2]
[346149308,1734751755511,-500.0,0.00019724,2]
[346149309,1734751755533,-502.72481487,0.00019724,2]
[346149310,1734751755557,-500.0,0.00019724,2]
[346149311,1734751755578,-501.20528444,0.00019724,2]
[346149312,1734751755599,-500.0,0.00019724,2]
[346149313,1734751755620,-500.0,0.00019724,2]
[346149314,1734751755642,-500.0,0.00019724,2]
[346149315,1734751755664,-502.67370274,0.00019724,2]
[346149316,1734751755686,-500.0,0.00019724,2]
[346149317,1734751755709,-500.0,0.00019724,2]
[346149318,1734751755731,-500.0,0.00019724,2]
[346149319,1734751755752,-500.0,0.00019724,2]
[346149320,1734751755775,-500.0,0.00019724,2]
[346149321,1734751755798,-501.38730945,0.00019724,2]
[346149322,1734751755822,-500.0,0.00019724,2]
[346149323,1734751755843,-500.0,0.00019724,2]
[346149324,1734751755864,-541.04,0.00019724,2]
[346149325,1734751755885,-500.0,0.00019724,2]
[346149326,1734751755908,-500.0,0.00019724,2]
[346149327,1734751755929,-500.0,0.00019724,2]
[346149328,1734751755951,-500.0,0.00019724,2]
[346149329,1734751755973,-503.45301184,0.00019724,2]
[346149330,1734751755994,-500.0,0.00019724,2]
[346149331,1734751756015,-500.0,0.00019724,2]
[346149332,1734751756037,-500.0,0.00019724,2]
[346149333,1734751756059,-514.58,0.00019724,2]
[346149334,1734751756081,-1565.85,0.00019724,2]
[346149335,1734751756103,-500.0,0.00019724,2]
[346149336,1734751756124,-500.0,0.00019724,2]
[346149337,1734751756144,-500.0,0.00019724,2]
[346149338,1734751756166,-500.0,0.00019724,2]
[346149339,1734751756188,-500.0,0.00019724,2]
[346149340,1734751756209,-500.0,0.00019724,2]
[346149341,1734751756231,-500.0,0.00019724,2]
[346149342,1734751756252,-640.89,0.00019724,2]
[346149343,1734751756273,-500.0,0.00019724,2]
[346149344,1734751756294,-500.0,0.00019724,2]
[346149345,1734751756316,-500.0,0.00019724,2]
[346149346,1734751756337,-500.0,0.00019724,2]
[346149347,1734751756372,-500.0,0.00019724,2]
[346149348,1734751756398,-500.0,0.00019724,2]
[346149349,1734751756421,-500.0,0.00019724,2]
[346149350,1734751756445,-507.12,0.00019724,2]
[346149351,1734751756470,-538.75,0.00019724,2]
[346149352,1734751756494,-480.39257003,0.00019724,2]
[346149353,1734751756517,-500.0,0.00019724,2]
[346149354,1734751756544,-500.0,0.00019724,2]
[346149355,1734751756566,-173.32964947,0.00019724,2]
[346149356,1734751756590,-500.0,0.00019724,2]
[346149357,1734751756613,-500.0,0.00019724,2]
[346149358,1734751756637,-500.0,0.00019724,2]
[346149359,1734751756660,-500.0,0.00019724,2]
[346149360,1734751756681,-500.0,0.00019724,2]
[346149361,1734751756703,-500.0,0.00019724,2]
[346149362,1734751756724,-500.0,0.00019724,2]
[346149363,1734751756745,-500.0,0.00019724,2]
[346149364,1734751756767,-500.0,0.00019724,2]
[346149365,1734751756789,-500.0,0.00019724,2]
[346149366,1734751756811,-500.0,0.00019724,2]
[346149367,1734751756832,-500.0,0.00019724,2]
[346149368,1734751756854,-572.92294494,0.00019724,2]
[346149369,1734751756875,-500.0,0.00019724,2]
[346149370,1734751756897,-958.27,0.00019724,2]
[346149371,1734751756920,-569.64932504,0.00019724,2]
[346149372,1734751756943,-637.6,0.00019724,2]
[346149373,1734751756964,-568.18274803,0.00019724,2]
[346149374,1734751756985,-500.0,0.00019724,2]
[346149375,1734751757006,-500.0,0.00019724,2]
[346149376,1734751757029,-506.93,0.00019724,2]
[346149377,1734751757051,-500.0,0.00019724,2]
[346149378,1734751757074,-500.0,0.00019724,2]
[346149379,1734751757096,-500.0,0.00019724,2]
[346149380,1734751757118,-500.0,0.00019724,2]
[346149381,1734751757138,-500.0,0.00019724,2]
[346149382,1734751757161,-500.63547758,0.00019724,2]
[346149383,1734751757183,-500.0,0.00019724,2]
[346149384,1734751757207,-500.0,0.00019724,2]
[346149385,1734751757230,-500.0,0.00019724,2]
[346149386,1734751757253,-500.0,0.00019724,2]
[346149387,1734751757277,-500.0,0.00019724,2]
[346149388,1734751757300,-504.77318614,0.00019724,2]
[346149389,1734751757327,-500.0,0.00019724,2]
[346149390,1734751757351,-500.0,0.00019724,2]
[346149391,1734751757374,-500.0,0.00019724,2]
[346149392,1734751757397,-500.0,0.00019724,2]
[346149393,1734751757420,-500.0,0.00019724,2]
[346149394,1734751757444,-500.0,0.00019724,2]
[346149395,1734751757470,-500.0,0.00019724,2]
[346149396,1734751757493,-500.0,0.00019724,2]
[346149397,1734751757516,-500.0,0.00019724,2]
[346149398,1734751757539,-500.0,0.00019724,2]
[346149399,1734751757563,-500.0,0.00019724,2]
[346149400,1734751757585,-500.0,0.00019724,2]
[346149401,1734751757607,-500.0,0.00019724,2]
[346149402,1734751757629,-500.0,0.00019724,2]
[346149403,1734751757657,-151.0,0.00019724,2]
[346149404,1734751757680,-1130.49,0.00019724,2]
[346149405,1734751757702,-151.0,0.00019724,2]
[346149406,1734751757725,-500.0,0.00019724,2]
[346149407,1734751757747,-500.0,0.00019724,2]
[346149408,1734751757770,-500.0,0.00019724,2]
[346149409,1734751757792,-500.0,0.00019724,2]
[346149410,1734751757815,-500.0,0.00019724,2]
[346149411,1734751757836,-524.42300933,0.00019724,2]
[346149412,1734751757858,-500.0,0.00019724,2]
[346149413,1734751757880,-507.16,0.00019724,2]
[346149414,1734751757903,-215.962333,0.00019724,2]
[346149415,1734751757925,-500.0,0.00019724,2]
[346149416,1734751757948,-215.962333,0.00019724,2]
[346149417,1734751757971,-215.962333,0.00019724,2]
[346149418,1734751757993,-215.962333,0.00019724,2]
[346149419,1734751758015,-500.0,0.00019724,2]
[346149420,1734751758037,-500.0,0.00019724,2]
[346149421,1734751758059,-500.0,0.00019724,2]
[346149422,1734751758081,-500.0,0.00019724,2]
[346149423,1734751758102,-500.0,0.00019724,2]
[346149424,1734751758124,-151.0,0.00019724,2]
[346149425,1734751758147,-151.0,0.00019724,2]
[346149426,1734751758169,-500.0,0.00019724,2]
[346149427,1734751758414,-151.0,0.00019724,2]
[346149428,1734751758439,-151.0,0.00019724,2]
[346149429,1734751758464,-500.0,0.00019724,2]
[346149430,1734751758487,-151.0,0.00019724,2]
[346149431,1734751758509,-37.50017376,0.00019724,2]
[346149432,1734751758974,-233.38165824,0.00019724,2]
[346149433,1734751758995,-151.0,0.00019724,2]
[346149434,1734751759018,-151.0,0.00019724,2]
[346149435,1734751759038,-500.0,0.00019724,2]
[346149436,1734751759059,-437.68895727,0.00019724,2]
[346149437,1734751759080,-500.0,0.00019724,2]
[346149438,1734751759101,-500.0,0.00019724,2]
[346149439,1734751759122,-152.743729,0.00019724,2]
[346149440,1734751759143,-507.97414191,0.00019724,2]
[346149441,1734751759164,-500.0,0.00019724,2]
[346149442,1734751759185,-500.0,0.00019724,2]
[346149443,1734751759205,-500.0,0.00019724,2]
[346149444,1734751759226,-500.0,0.00019724,2]
[346149445,1734751759247,-500.0,0.00019724,2]
[346149446,1734751759268,-500.0,0.00019724,2]
[346149447,1734751759289,-500.0,0.00019724,2]
[346149448,1734751759312,-772.11,0.00019724,2]
[346149449,1734751759334,-500.85946782,0.00019724,2]
[346149450,1734751759356,-500.0,0.00019724,2]
[346149451,1734751759378,-500.0,0.00019724,2]
[346149452,1734751759399,-500.0,0.00019724,2]
[346149453,1734751759423,-1332.56,0.00019724,2]
[346149454,1734751759445,-500.0,0.00019724,2]
[346149455,1734751759469,-500.0,0.00019724,2]
[346149456,1734751759490,-151.0,0.00019724,2]
[346149457,1734751759511,-151.0,0.00019724,2]
[346149458,1734751759532,-162.00152,0.00019724,2]
[346149459,1734751759552,-500.0,0.00019724,2]
[346149460,1734751759574,-500.0,0.00019724,2]
[346149461,1734751759593,-500.0,0.00019724,2]
[346149462,1734751759616,-500.0,0.00019724,2]
[346149463,1734751759636,-500.0,0.00019724,2]
[346149464,1734751759657,-4957.18,0.00019724,2]
[346149465,1734751759676,-500.0,0.00019724,2]
[346149466,1734751759697,-1294.24,0.00019724,2]
[346149467,1734751759717,-500.0,0.00019724,2]
[346149468,1734751759738,-500.0,0.00019724,2]
[346149469,1734751759759,-506.01335264,0.00019724,2]
[346149470,1734751759779,-1534.55,0.00019724,2]
[346149471,1734751759799,-500.0,0.00019724,2]
[346149472,1734751759819,-500.0,0.00019724,2]
[346149473,1734751759839,-257.593406,0.00019724,2]
[346149474,1734751759859,-2980.82,0.00019724,2]
[346149475,1734751759879,-500.0,0.00019724,2]
[346149476,1734751759898,-151.0,0.00019724,2]
[346149477,1734751759918,-151.0,0.00019724,2]
[346149478,1734751759938,-151.0,0.00019724,2]
[346149479,1734751759958,-500.0,0.00019724,2]
[346149480,1734751759978,-233.032539,0.00019724,2]
[346149481,1734751759998,-500.0,0.00019724,2]
[346149482,1734751760019,-500.0,0.00019724,2]
[346149483,1734751760038,-500.0,0.00019724,2]
[346149484,1734751760059,-1805.78,0.00019724,2]
[346149485,1734751760080,-500.0,0.00019724,2]
[346149486,1734751760101,-264.327959,0.00019724,2]
[346149487,1734751760122,-500.0,0.00019724,2]
[346149488,1734751760143,-264.327959,0.00019724,2]
[346149489,1734751760163,-500.0,0.00019724,2]
[346149490,1734751760183,-593.77,0.00019724,2]
[346149491,1734751760205,-264.327959,0.00019724,2]
[346149492,1734751760226,-264.327959,0.00019724,2]
[346149493,1734751760247,-2603.65,0.00019724,2]
[346149494,1734751760268,-500.0,0.00019724,2]
[346149495,1734751760289,-151.0,0.00019724,2]
[346149496,1734751760311,-151.0,0.00019724,2]
[346149497,1734751760331,-151.0,0.00019724,2]
[346149498,1734751760352,-151.0,0.00019724,2]
[346149499,1734751760372,-1943.05,0.00019724,2]
[346149500,1734751760392,-500.0,0.00019724,2]
[346149501,1734751760412,-500.0,0.00019724,2]
[346149502,1734751760432,-500.0,0.00019724,2]
[346149503,1734751760454,-500.0,0.00019724,2]
[346149504,1734751760474,-500.0,0.00019724,2]
[346149505,1734751760495,-151.0,0.00019724,2]
[346149506,1734751760515,-151.0,0.00019724,2]
[346149507,1734751760536,-912.37,0.00019724,2]
[346149508,1734751760559,-151.0,0.00019724,2]
[346149509,1734751760579,-151.0,0.00019724,2]
[346149510,1734751760599,-500.0,0.00019724,2]
[346149511,1734751760619,-1207.13,0.00019724,2]
[346149512,1734751760639,-151.0,0.00019724,2]
[346149513,1734751760659,-151.0,0.00019724,2]
[346149514,1734751760685,-151.0,0.00019724,2]
[346149515,1734751760709,-171.146007,0.00019724,2]
[346149516,1734751760729,-153.74164,0.00019724,2]
[346149517,1734751760749,-500.0,0.00019724,2]
[346149518,1734751760772,-157.691845,0.00019724,2]
[346149519,1734751760792,-798.11,0.00019724,2]
[346149520,1734751760813,-500.0,0.00019724,2]
[346149521,1734751760833,-151.0,0.00019724,2]
[346149522,1734751760854,-201.094144,0.00019724,2]
[346149523,1734751760875,-500.0,0.00019724,2]
[346149524,1734751760894,-500.0,0.00019724,2]
[346149525,1734751760914,-834.87,0.00019724,2]
[346149526,1734751760933,-500.0,0.00019724,2]
[346149527,1734751760967,-151.0,0.00019724,2]
[346149528,1734751760989,-151.0,0.00019724,2]
[346149529,1734751761010,-151.0,0.00019724,2]
[346149530,1734751761030,-500.0,0.00019724,2]
[346149531,1734751761050,-500.0,0.00019724,2]
[346149532,1734751761071,-500.0,0.00019724,2]
[346149533,1734751761100,-1742.99,0.00019724,2]
[346149534,1734751761121,-500.0,0.00019724,2]
[346149535,1734751761142,-500.0,0.00019724,2]
[346149536,1734751761162,-500.0,0.00019724,2]
[346149537,1734751761183,-152.124972,0.00019724,2]
[346149538,1734751761203,-500.0,0.00019724,2]
[346149539,1734751761223,-500.0,0.00019724,2]
[346149540,1734751761244,-553.06,0.00019724,2]
[346149541,1734751761264,-500.0,0.00019724,2]
[346149542,1734751761284,-500.0,0.00019724,2]
[346149543,1734751761304,-56791.09349537,0.00019724,2]
[346149544,1734751762222,-6614.24921211,0.00019724,2]
[346149545,1734751762255,-32299.43729252,0.00019724,2]
[346149546,1734751762275,-500.0,0.00019724,2]
[346149547,1734751762295,-500.0,0.00019724,2]
[346149548,1734751762317,-500.0,0.00019724,2]
[346149549,1734751762336,-500.0,0.00019724,2]
[346149550,1734751762356,-505.74173159,0.00019724,2]
[346149551,1734751762375,-500.0,0.00019724,2]
[346149552,1734751762396,-500.0,0.00019724,2]
[346149553,1734751762416,-500.0,0.00019724,2]
[346149554,1734751762436,-593.57,0.00019724,2]
[346149555,1734751762460,-1309.62,0.00019724,2]
[346149556,1734751762481,-500.0,0.00019724,2]
[346149557,1734751762501,-151.0,0.00019724,2]
[346149558,1734751762522,-500.0,0.00019724,2]
[346149559,1734751762544,-151.0,0.00019724,2]
[346149560,1734751762565,-151.0,0.00019724,2]
[346149561,1734751762585,-151.0,0.00019724,2]
[346149562,1734751762606,-151.0,0.00019724,2]
[346149563,1734751762627,-151.0,0.00019724,2]
[346149564,1734751762649,-151.0,0.00019724,2]
[346149565,1734751762670,-151.0,0.00019724,2]
[346149566,1734751762692,-500.0,0.00019724,2]
[346149567,1734751762712,-500.0,0.00019724,2]
[346149568,1734751762734,-5269.5,0.00019724,2]
[346149569,1734751762755,-501.16735097,0.00019724,2]
[346149570,1734751762778,-500.0,0.00019724,2]
[346149571,1734751762798,-504.89202936,0.00019724,2]
[346149572,1734751762818,-500.0,0.00019724,2]
[346149573,1734751762839,-500.0,0.00019724,2]
[346149574,1734751762860,-151.0,0.00019724,2]
[346149575,1734751762880,-151.0,0.00019724,2]
[346149576,1734751762899,-154.122544,0.00019724,2]
[346149577,1734751762920,-502.91629993,0.00019724,2]
[346149578,1734751762940,-500.0,0.00019724,2]
[346149579,1734751762960,-500.0,0.00019724,2]
[346149580,1734751762980,-500.0,0.00019724,2]
[346149581,1734751763000,-500.0,0.00019724,2]
[346149582,1734751763020,-500.0,0.00019725,2]
[346149583,1734751763041,-791.66,0.00019725,2]
[346149584,1734751763062,-692.9,0.00019725,2]
[346149585,1734751763082,-500.0,0.00019725,2]
[346149586,1734751763106,-500.0,0.00019725,2]
[346149587,1734751763128,-500.0,0.00019725,2]
[346149588,1734751763151,-500.0,0.00019725,2]
[346149589,1734751763171,-500.0,0.00019725,2]
[346149590,1734751763192,-500.0,0.00019725,2]
[346149591,1734751763214,-1037.23,0.00019725,2]
[346149592,1734751763235,-500.0,0.00019725,2]
[346149593,1734751763257,-500.0,0.00019725,2]
[346149594,1734751763278,-500.0,0.00019725,2]
[346149595,1734751763299,-500.0,0.00019725,2]
[346149596,1734751763320,-500.0,0.00019725,2]
[346149597,1734751763341,-640.23,0.00019725,2]
[346149598,1734751763362,-3375.59,0.00019725,2]
[346149599,1734751763384,-500.0,0.00019725,2]
[346149600,1734751763406,-500.0,0.00019725,2]
[346149601,1734751763428,-1685.03,0.00019725,2]
[346149602,1734751763452,-504.18989347,0.00019725,2]
[346149603,1734751763473,-870.45,0.00019725,2]
[346149604,1734751763497,-1071.62,0.00019725,2]
[346149605,1734751763519,-500.0,0.00019725,2]
[346149606,1734751763541,-603.66,0.00019725,2]
[346149607,1734751763561,-500.0,0.00019725,2]
[346149608,1734751763582,-500.0,0.00019725,2]
[346149609,1734751763603,-500.0,0.00019725,2]
[346149610,1734751763625,-193.56771961,0.00019725,2]
[346149611,1734751763648,-500.0,0.00019725,2]
[346149612,1734751763670,-500.0,0.00019725,2]
[346149613,1734751763691,-500.0,0.00019725,2]
[346149614,1734751763712,-153.910205,0.00019725,2]
[346149615,1734751763735,-500.0,0.00019725,2]
[346149616,1734751763756,-500.0,0.00019725,2]
[346149617,1734751763780,-1753.4,0.00019725,2]
[346149618,1734751763801,-837.06,0.00019725,2]
[346149619,1734751763824,-502.6707306,0.00019725,2]
[346149620,1734751763845,-3339.84,0.00019725,2]
[346149621,1734751763866,-500.0,0.00019725,2]
[346149622,1734751763889,-500.0,0.00019725,2]
[346149623,1734751763910,-505.61696611,0.00019725,2]
[346149624,1734751763932,-500.0,0.00019725,2]
[346149625,1734751763954,-151.0,0.00019725,2]
[346149626,1734751763976,-299.540435,0.00019725,2]
[346149627,1734751763998,-525.61,0.00019725,2]
[346149628,1734751764019,-500.0,0.00019725,2]
[346149629,1734751764040,-2075.39,0.00019725,2]
[346149630,1734751764064,-215.962333,0.00019725,2]
[346149631,1734751764086,-215.962333,0.00019725,2]
[346149632,1734751764107,-1299.57,0.00019725,2]
[346149633,1734751764127,-500.0,0.00019725,2]
[346149634,1734751764150,-1189.57,0.00019725,2]
[346149635,1734751764172,-151.0,0.00019725,2]
[346149636,1734751764194,-151.0,0.00019725,2]
[346149637,1734751764218,-151.0,0.00019725,2]
[346149638,1734751764240,-151.0,0.00019725,2]
[346149639,1734751764261,-159.969866,0.00019725,2]
[346149640,1734751764283,-809.68,0.00019725,2]
[346149641,1734751764304,-1044.84,0.00019725,2]
[346149642,1734751764331,-500.0,0.00019725,2]
[346149643,1734751764353,-1476.79,0.00019725,2]
[346149644,1734751764375,-858.62,0.00019725,2]
[346149645,1734751764395,-507.7290899,0.00019725,2]
[346149646,1734751764416,-830.27,0.00019725,2]
[346149647,1734751764438,-1683.51,0.00019725,2]
[346149648,1734751764465,-151.0,0.00019725,2]
[346149649,1734751764486,-151.0,0.00019725,2]
[346149650,1734751764509,-500.0,0.00019725,2]
[346149651,1734751764532,-264.327959,0.00019725,2]
[346149652,1734751764555,-264.327959,0.00019725,2]
[346149653,1734751764578,-500.0,0.00019725,2]
[346149654,1734751764601,-264.327959,0.00019725,2]
[346149655,1734751764624,-264.327959,0.00019725,2]
[346149656,1734751764646,-748.95,0.00019725,2]
[346149657,1734751764668,-151.0,0.00019725,2]
[346149658,1734751764691,-151.0,0.00019725,2]
[346149659,1734751764713,-151.0,0.00019725,2]
[346149660,1734751764737,-151.0,0.00019725,2]
[346149661,1734751764762,-500.0,0.00019725,2]
[346149662,1734751764785,-326.51801946,0.00019725,2]
[346149663,1734751768309,-758.68,0.00019723,2]
[346149664,1734751768333,-254.43286,0.00019723,2]
[346149665,1734751768356,-1277.03,0.00019723,2]
[346149666,1734751768377,-500.0,0.00019724,2]
[346149667,1734751768399,-254.43286,0.00019724,2]
[346149668,1734751768420,-254.43286,0.00019724,2]
[346149669,1734751768442,-254.43286,0.00019724,2]
[346149670,1734751768468,-3626.87198054,0.00019725,2]
[346149671,1734751768491,-151.0,0.00019725,2]
[346149672,1734751768512,-151.0,0.00019725,2]
[346149673,1734751768534,-151.0,0.00019725,2]
[346149674,1734751768555,-3874.99,0.00019725,2]
[346149675,1734751768577,-1977.15,0.00019725,2]
[346149676,1734751768598,-500.0,0.00019725,2]
[346149677,1734751768620,-136.68717748,0.00019725,2]
[346149678,1734751783761,1001.38,0.00025,120]
[346149726,1734751832648,-31.35758853,0.00019721,2]
[346149728,1734751832661,-4456.36241147,0.00019721,2]
[346149731,1734751832670,-1956.14,0.00019721,2]
[346149733,1734751832679,-300.0,0.00019721,2]
[346149735,1734751832688,-355.17695606,0.00019721,2]
[346149935,1734751840645,-145.77278034,0.00019721,2]
[346149936,1734751840655,-1658.01,0.00019721,2]
[346149937,1734751840666,-500.0,0.00019721,2]
[346149938,1734751840676,-2941.3,0.00019721,2]
[346149939,1734751840686,-637.06,0.00019721,2]
[346149940,1734751840695,-518.39,0.00019722,2]
[346149941,1734751840705,-7177.59,0.00019722,2]
[346149942,1734751840715,-658.6,0.00019722,2]
[346149943,1734751840724,-500.0,0.00019722,2]
[346149944,1734751840734,-1513.12,0.00019722,2]
[346149945,1734751840743,-6596.2,0.00019722,2]
[346149946,1734751840754,-254.43286,0.00019723,2]
[346149947,1734751840763,-520.95,0.00019723,2]
[346149948,1734751840773,-577.41,0.00019723,2]
[346149949,1734751840783,-500.0,0.00019723,2]
[346149950,1734751840792,-4750.63,0.00019723,2]
[346149951,1734751840802,-500.0,0.00019723,2]
[346149952,1734751840813,-1689.84,0.00019723,2]
[346149953,1734751840823,-151.0,0.00019723,2]
[346149954,1734751840833,-158.596775,0.00019723,2]
[346149955,1734751840843,-500.0,0.00019723,2]
[346149956,1734751840853,-1240.31,0.00019723,2]
[346149957,1734751840863,-158.596775,0.00019723,2]
[346149958,1734751840873,-500.0,0.00019723,2]
[346149959,1734751840883,-500.0,0.00019723,2]
[346149960,1734751840893,-2856.62,0.00019723,2]
[346149961,1734751840902,-2443.1,0.00019723,2]
[346149962,1734751840912,-500.0,0.00019723,2]
[346149963,1734751840922,-500.0,0.00019723,2]
[346149964,1734751840931,-500.0,0.00019723,2]
[346149965,1734751840940,-500.0,0.00019723,2]
[346149966,1734751840950,-1427.59160379,0.00019723,2]
[346149967,1734751841542,-182.50607543,0.00019723,2]
[346149968,1734751841812,-120.44232078,0.00019723,2]
[346149969,1734751841821,-379.55767922,0.00019723,2]
[346149970,1734751841937,-120.44232078,0.00019723,2]
[346149971,1734751841947,-500.0,0.00019723,2]
[346149972,1734751841956,-1201.46,0.00019723,2]
[346149973,1734751841965,-151.0,0.00019723,2]
[346149974,1734751841975,-500.0,0.00019723,2]
[346149975,1734751841985,-500.0,0.00019723,2]
[346149976,1734751841995,-500.0,0.00019723,2]
[346149977,1734751842004,-2495.17,0.00019723,2]
[346149978,1734751842014,-501.25459759,0.00019723,2]
[346149979,1734751842024,-254.43286,0.00019724,2]
[346149980,1734751842033,-17730.42754584,0.00019724,2]
[346149981,1734751842046,-754.0799994,0.00019724,2]
[346149997,1734752318523,157.965618,0.00013973,2]
[346150006,1734752465149,294.0,0.00025,120]
[346150008,1734752736104,-394.95543073,0.0001962,2]
[346150009,1734752736127,-182.86245964,0.00019621,2]
[346150010,1734752736150,-394.95543066,0.0001966,2]
[346150011,1734752736172,-123.65289585,0.000197,2]
[346150013,1734752843268,-177.206315,0.00019178,2]
[346150014,1734752843291,-280.75996104,0.00019619,2]
[346150015,1734752843313,-280.75996101,0.00019659,2]
[346150016,1734752843335,-280.75996101,0.00019699,2]
[346150017,1734752843358,-300.0,0.00019717,2]
[346150018,1734752843379,-300.0,0.00019717,2]
[346150019,1734752843401,-500.0,0.00019718,2]
[346150020,1734752843423,-641.22,0.00019718,2]
[346150021,1734752843445,-500.0,0.00019718,2]
[346150022,1734752843468,-500.0,0.00019718,2]
[346150023,1734752843490,-511.43623623,0.00019718,2]
[346150024,1734752843517,-716.36,0.00019718,2]
[346150025,1734752843538,-502.21598381,0.00019718,2]
[346150026,1734752843559,-500.0,0.00019718,2]
[346150027,1734752843581,-501.20977484,0.00019718,2]
[346150028,1734752843604,-502.06915255,0.00019718,2]
[346150029,1734752843627,-500.0,0.00019718,2]
[346150030,1734752843655,-1672.01,0.00019718,2]
[346150031,1734752843677,-500.0,0.00019718,2]
[346150032,1734752843701,-374.21538418,0.00019718,2]
[346150033,1734752843724,-537.61848965,0.00019718,2]
[346150034,1734752843747,-500.0,0.00019718,2]
[346150035,1734752843768,-500.0,0.00019718,2]
[346150036,1734752843794,-500.0,0.00019718,2]
[346150037,1734752843816,-500.0,0.00019718,2]
[346150038,1734752843838,-500.0,0.00019718,2]